bitfinex/quotes_BTCUSD_20240730
["timestamp","ask_amount","ask_price","bid_price","bid_amount"]
[1722363160250,0.00093,65954.0,65953.0,1.58718025]
[1722363160795,0.00093,65954.0,65953.0,1.58716574]
[1722363161446,0.00093,65954.0,65953.0,1.28391974]
[1722363161978,0.00093,65954.0,65953.0,1.15792811]
[1722363162637,0.00093,65954.0,65953.0,1.28392823]
[1722363162839,0.00093,65954.0,65953.0,1.29792823]
[1722363163072,0.00093,65954.0,65953.0,1.74227423]
[1722363163674,0.00093,65954.0,65953.0,1.7422684]
[1722363165392,0.00093,65954.0,65953.0,1.7282684]
[1722363166043,0.00093,65954.0,65953.0,1.2060224]
[1722363166216,0.00093,65954.0,65953.0,1.0649224]
[1722363166418,0.00093,65954.0,65953.0,0.95292811]
[1722363166624,0.00093,65954.0,65953.0,0.93892811]
[1722363167047,0.00093,65954.0,65953.0,0.92992811]
[1722363167228,0.00093,65954.0,65953.0,0.91592811]
[1722363168623,0.00093,65954.0,65953.0,0.62668211]
[1722363168828,0.00093,65954.0,65953.0,0.32343611]
[1722363169029,0.00093,65954.0,65953.0,0.62668211]
[1722363169240,0.00093,65954.0,65953.0,0.30943611]
[1722363169646,0.00093,65954.0,65953.0,0.61268211]
[1722363170052,0.00093,65954.0,65953.0,0.62668211]
[1722363170495,0.00093,65954.0,65953.0,0.92992811]
[1722363171319,0.00093,65954.0,65953.0,0.62668211]
[1722363171914,0.00093,65954.0,65953.0,0.61268211]
[1722363172085,0.00093,65954.0,65953.0,0.62668211]
[1722363172634,0.00093,65954.0,65953.0,0.61268211]
[1722363172833,0.00093,65954.0,65953.0,0.91592811]
[1722363173045,0.00093,65954.0,65953.0,1.35617411]
[1722363173243,0.00093,65954.0,65953.0,1.46816825]
[1722363173895,0.00093,65954.0,65953.0,1.48216825]
[1722363175308,0.00093,65954.0,65953.0,1.46816825]
[1722363175691,0.00093,65954.0,65953.0,1.48216825]
[1722363177810,0.00093,65954.0,65953.0,1.67115798]
[1722363178178,0.00093,65954.0,65953.0,2.17580245]
[1722363178372,0.0148999,65970.0,65953.0,2.17580245]
[1722363178373,0.0148999,65970.0,65969.0,0.75793]
[1722363178573,0.07054066,65970.0,65969.0,1.04909195]
[1722363178702,0.0148999,65970.0,65969.0,1.62339705]
[1722363178904,0.0148999,65970.0,65969.0,1.81234316]
[1722363179108,0.07051502,65970.0,65969.0,1.63339705]
[1722363179306,0.0148999,65970.0,65969.0,1.95275199]
[1722363179506,0.0148999,65970.0,65969.0,1.63781291]
[1722363179709,0.0148999,65970.0,65969.0,1.95270426]
[1722363180092,0.0148999,65970.0,65969.0,2.27587626]
[1722363180292,0.0148999,65970.0,65969.0,1.97270426]
[1722363180698,0.0148999,65970.0,65969.0,2.27587626]
[1722363180899,0.00854,65980.0,65979.0,1.160941]
[1722363181123,0.00854,65980.0,65979.0,1.93686535]
[1722363181344,0.06790272,65980.0,65979.0,1.8439691]
[1722363181541,0.00854,65980.0,65979.0,1.8439691]
[1722363182153,0.00854,65980.0,65979.0,2.08594464]
[1722363182357,0.00854,65980.0,65979.0,2.09994508]
[1722363182514,0.00854,65980.0,65979.0,1.65271256]
[1722363182711,0.00854,65980.0,65979.0,1.41202777]
[1722363183174,0.00854,65980.0,65979.0,1.71515377]
[1722363183772,0.00854,65980.0,65979.0,1.41202777]
[1722363184077,0.00854,65980.0,65979.0,1.71515377]
[1722363184706,0.00854,65980.0,65979.0,1.41202777]
[1722363184915,0.00854,65980.0,65979.0,0.31221277]
[1722363184916,0.06904,65980.0,65979.0,0.31221277]
[1722363185088,0.06904,65980.0,65979.0,0.49499705]
[1722363185262,0.00854,65980.0,65979.0,0.49499705]
[1722363185736,0.00854,65980.0,65979.0,0.35505584]
[1722363185957,0.00854,65980.0,65979.0,0.79813049]
[1722363186160,0.00854,65980.0,65979.0,0.78359572]
[1722363186362,0.00854,65980.0,65979.0,0.31490672]
[1722363186757,0.00854,65980.0,65979.0,0.32890672]
[1722363186965,0.00854,65980.0,65979.0,0.31490672]
[1722363187203,0.00854,65980.0,65979.0,0.46646972]
[1722363187621,0.00854,65980.0,65979.0,0.77780388]
[1722363187797,0.00854,65980.0,65979.0,1.08092988]
[1722363188249,0.00854,65980.0,65979.0,1.29992988]
[1722363188453,0.00854,65980.0,65979.0,1.48212988]
[1722363188873,0.00854,65980.0,65979.0,1.77124772]
[1722363189075,0.00854,65980.0,65979.0,1.78524772]
[1722363189284,0.00854,65980.0,65979.0,1.33692172]
[1722363189489,0.00854,65980.0,65979.0,1.32292172]
[1722363189691,0.00854,65980.0,65979.0,1.62604772]
[1722363189901,0.00854,65980.0,65979.0,1.64004772]
[1722363190524,0.00854,65980.0,65979.0,1.6951471]
[1722363190725,0.00854,65980.0,65979.0,1.75810679]
[1722363190926,0.00854,65980.0,65979.0,1.93241944]
[1722363191074,0.00854,65980.0,65979.0,1.8793599]
[1722363191278,0.00854,65980.0,65979.0,1.8893599]
[1722363191657,0.00854,65980.0,65979.0,2.40523436]
[1722363191860,0.00854,65980.0,65979.0,2.58091683]
[1722363192090,0.00855,65988.0,65979.0,2.58091683]
[1722363192091,0.00222606,65988.0,65987.0,1.853505]
[1722363192292,1.001e-05,65996.0,65995.0,0.211936]
[1722363192528,0.0616,66014.0,65999.0,0.797995]
[1722363192708,0.0658,66022.0,65999.0,1.74708046]
[1722363192930,0.0658,66022.0,65999.0,2.67021644]
[1722363192931,1.39209804,66000.0,65999.0,2.67021644]
[1722363193231,1.16551042,66000.0,65999.0,2.13504629]
[1722363193432,1.11045866,66000.0,65999.0,2.6041064]
[1722363193636,1.11045866,66000.0,65999.0,2.04241546]
[1722363193841,0.0658,66028.0,66006.0,0.413002]
[1722363194049,0.0658,66028.0,66006.0,1.67591018]
[1722363194250,0.002,66023.0,66006.0,2.07141974]
[1722363194445,0.002,66023.0,66006.0,2.02702539]
[1722363194650,0.217251,66028.0,66006.0,2.02702539]
[1722363194651,0.002,66025.0,66006.0,2.02702539]
[1722363195066,0.002,66025.0,66006.0,1.88000936]
[1722363195200,0.0658,66028.0,66006.0,1.98588756]
[1722363195201,0.002,66022.0,66006.0,1.98588756]
[1722363195385,0.002,66022.0,66006.0,2.11700172]
[1722363195590,0.002,66023.0,66006.0,2.07591306]
[1722363196304,0.002,66023.0,66006.0,1.99656622]
[1722363196508,0.002,66017.0,66006.0,1.8820656]
[1722363196709,0.07534716,66023.0,66006.0,1.8820656]
[1722363196710,0.002,66019.0,66006.0,1.8820656]
[1722363196979,0.002,66019.0,66006.0,1.82285329]
[1722363197102,0.002,66025.0,66006.0,1.83285329]
[1722363197332,0.002,66025.0,66006.0,1.86926329]
[1722363197513,0.0658,66028.0,66006.0,1.95928879]
[1722363197721,0.002,66025.0,66006.0,1.95920052]
[1722363197922,0.217251,66028.0,66006.0,1.86926329]
[1722363198118,0.0658,66028.0,66006.0,2.17226459]
[1722363198435,0.002,66024.0,66006.0,1.93919359]
[1722363198636,0.002,66024.0,66006.0,1.95919359]
[1722363198893,0.002,66024.0,66006.0,1.95316768]
[1722363199097,0.002,66024.0,66006.0,1.85473142]
[1722363199291,0.0658,66028.0,66006.0,2.24763491]
[1722363199292,0.002,66027.0,66006.0,2.24763491]
[1722363199493,0.002,66027.0,66006.0,2.17173342]
[1722363199699,0.0658,66028.0,66009.0,1.120868]
[1722363199905,0.0658,66028.0,66009.0,1.71024327]
[1722363200110,0.0771,66029.0,66009.0,2.02024703]
[1722363200319,0.0771,66029.0,66009.0,1.9303859]
[1722363200734,0.0799,66035.0,66024.0,0.075]
[1722363200942,0.0234399,66036.0,66024.0,0.075]
[1722363200943,0.0234399,66036.0,66035.0,0.302869]
[1722363201176,0.0234399,66036.0,66035.0,0.16516781]
[1722363201391,0.0234399,66036.0,66035.0,0.92927937]
[1722363201596,0.0234399,66036.0,66035.0,0.38763003]
[1722363201811,0.0234399,66036.0,66035.0,0.64941037]
[1722363202018,0.0234399,66036.0,66035.0,0.95227937]
[1722363202471,0.0234399,66036.0,66035.0,1.07812165]
[1722363202885,0.0234399,66036.0,66035.0,1.38099065]
[1722363203087,0.0234399,66036.0,66035.0,1.07812165]
[1722363203607,0.0234399,66036.0,66035.0,0.78925265]
[1722363204268,0.0234399,66036.0,66035.0,0.35504865]
[1722363204516,0.1049399,66036.0,66035.0,0.18440737]
[1722363204749,0.0234399,66036.0,66035.0,0.76456172]
[1722363204999,0.0234399,66036.0,66035.0,0.66171037]
[1722363205239,0.0234399,66036.0,66035.0,0.78755304]
[1722363205470,0.0234399,66036.0,66035.0,0.33325004]
[1722363205693,0.0234399,66036.0,66035.0,0.78755598]
[1722363205884,0.0234399,66036.0,66035.0,0.77355416]
[1722363206222,0.0234399,66036.0,66035.0,0.77301939]
[1722363206421,0.0234399,66036.0,66035.0,1.07588839]
[1722363207078,0.0234399,66036.0,66035.0,1.06188839]
[1722363207266,0.0234399,66036.0,66035.0,1.36475739]
[1722363207446,0.0234399,66036.0,66035.0,1.37875739]
[1722363207646,0.0234399,66036.0,66035.0,1.44105309]
[1722363208048,0.0234399,66036.0,66035.0,1.49213636]
[1722363208321,0.0234399,66036.0,66035.0,1.94541364]
[1722363208584,0.0234399,66036.0,66035.0,2.33772579]
[1722363208785,0.0234399,66036.0,66035.0,2.32668264]
[1722363208910,0.0234399,66036.0,66035.0,2.37959787]
[1722363209115,0.0234399,66036.0,66035.0,2.59061121]
[1722363209320,0.0001,66043.0,66042.0,1.523176]
[1722363209520,0.0001,66043.0,66042.0,2.33814818]
[1722363209701,0.0001,66043.0,66042.0,2.17749757]
[1722363209903,0.0001,66043.0,66042.0,2.02309512]
[1722363210104,0.0001,66043.0,66042.0,2.10240784]
[1722363210316,0.0001,66043.0,66042.0,1.65877084]
[1722363210541,0.0001,66043.0,66042.0,1.56945812]
[1722363210742,0.0001,66043.0,66042.0,1.85510314]
[1722363210940,0.0001,66043.0,66042.0,1.88460849]
[1722363211633,0.0001,66043.0,66042.0,1.89314849]
[1722363212361,0.0001,66043.0,66042.0,1.90714849]
[1722363212561,0.0001,66043.0,66042.0,2.01875047]
[1722363212765,0.0001,66043.0,66042.0,2.02709792]
[1722363213203,0.0001,66043.0,66042.0,1.91549594]
[1722363213634,0.0001,66043.0,66042.0,1.93549594]
[1722363214058,0.0001,66043.0,66042.0,1.80968353]
[1722363214271,0.0001,66043.0,66042.0,2.19482748]
[1722363214483,0.0001,66043.0,66042.0,2.64066448]
[1722363214722,0.0001,66043.0,66042.0,2.55549969]
[1722363215343,0.0001,66043.0,66042.0,2.63121969]
[1722363216007,0.0001,66043.0,66042.0,2.67521215]
[1722363216216,0.0001,66043.0,66042.0,2.21866269]
[1722363216415,0.0001,66043.0,66042.0,2.25266269]
[1722363216625,0.0001,66043.0,66042.0,2.21866269]
[1722363216827,0.0001,66043.0,66042.0,2.22866269]
[1722363217069,0.0001,66043.0,66042.0,2.25266269]
[1722363217273,0.0001,66043.0,66042.0,2.55551108]
[1722363217677,0.0001,66043.0,66042.0,2.26667408]
[1722363217904,0.0001,66043.0,66042.0,1.71483708]
[1722363218123,0.0001,66043.0,66042.0,1.31661656]
[1722363218547,0.0001,66043.0,66042.0,1.50534018]
[1722363218764,0.0001,66043.0,66042.0,1.80817718]
[1722363218983,0.0001,66043.0,66042.0,1.72434018]
[1722363219196,0.0001,66043.0,66042.0,2.19637718]
[1722363219411,0.00854,66046.0,66045.0,1.18279]
[1722363219638,0.07474,66066.0,66065.0,0.151366]
[1722363219854,0.07474,66066.0,66065.0,1.11468702]
[1722363220070,0.07474,66066.0,66065.0,0.78983127]
[1722363220306,0.07474,66066.0,66065.0,0.79751839]
[1722363220512,0.07474,66066.0,66065.0,0.88670518]
[1722363220865,0.07474,66066.0,66065.0,0.81151839]
[1722363221290,0.07474,66066.0,66065.0,0.79751839]
[1722363221504,0.07474,66066.0,66065.0,0.56151454]
[1722363221736,0.07474,66066.0,66065.0,0.86424654]
[1722363221926,0.07674,66066.0,66065.0,0.56151454]
[1722363222156,0.07674,66066.0,66065.0,0.75276306]
[1722363222157,0.07474,66066.0,66065.0,0.75276306]
[1722363222372,0.07474,66066.0,66065.0,0.45003106]
[1722363222584,0.07674,66066.0,66065.0,0.46403106]
[1722363223017,0.07674,66066.0,66065.0,0.75276306]
[1722363223231,0.07674,66066.0,66065.0,0.45003106]
[1722363223482,0.07674,66066.0,66065.0,0.46403405]
[1722363223680,0.07674,66066.0,66065.0,0.31266805]
[1722363224124,0.53083,66066.0,66065.0,0.40201476]
[1722363224363,0.53083,66066.0,66065.0,0.31266805]
[1722363224364,0.07674,66066.0,66065.0,0.31266805]
[1722363224994,0.833557,66066.0,66065.0,0.38747252]
[1722363225236,1.03286387,66066.0,66065.0,0.36514504]
[1722363225414,0.73013687,66066.0,66065.0,0.29813328]
[1722363225559,0.73013687,66066.0,66065.0,0.34283001]
[1722363225761,1.03286387,66066.0,66065.0,0.34283001]
[1722363225985,1.03286387,66066.0,66065.0,0.29813328]
[1722363226397,1.03286387,66066.0,66065.0,0.34283167]
[1722363226617,0.42740987,66066.0,66065.0,0.29815168]
[1722363226784,1.03286387,66066.0,66065.0,0.29815168]
[1722363227240,1.03286387,66066.0,66065.0,0.36520785]
[1722363227444,1.03286387,66066.0,66065.0,0.14751864]
[1722363227651,1.03286387,66066.0,66065.0,0.21459612]
[1722363228097,1.03286387,66066.0,66065.0,0.19224322]
[1722363228307,1.03286387,66066.0,66065.0,0.14751864]
[1722363228502,1.03286387,66066.0,66065.0,0.19224322]
[1722363228852,1.03286387,66066.0,66065.0,0.14751864]
[1722363229063,1.33559087,66066.0,66065.0,0.19226543]
[1722363229263,1.33559087,66066.0,66065.0,0.13981046]
[1722363229710,1.33559087,66066.0,66065.0,0.014]
[1722363229915,1.33559087,66066.0,66065.0,0.13981756]
[1722363230119,1.33559087,66066.0,66065.0,0.14752574]
[1722363230337,1.33559087,66066.0,66065.0,0.12581756]
[1722363230539,1.33559087,66066.0,66065.0,0.17558807]
[1722363230753,1.33559087,66066.0,66065.0,0.13081756]
[1722363230902,1.33559087,66066.0,66065.0,0.18331047]
[1722363231129,1.03286387,66066.0,66065.0,0.14352574]
[1722363231325,0.42740987,66066.0,66065.0,0.36131183]
[1722363231524,0.42740987,66066.0,66065.0,0.37369618]
[1722363231525,0.73013687,66066.0,66065.0,0.37369618]
[1722363231950,1.33559087,66066.0,66065.0,0.13352574]
[1722363232513,1.47089858,66066.0,66065.0,0.13352574]
[1722363232906,1.47089858,66066.0,66065.0,0.00770818]
[1722363232907,1.77362558,66066.0,66065.0,0.00770818]
[1722363233112,1.77362558,66066.0,66065.0,0.13352966]
[1722363233317,1.77362558,66066.0,66065.0,0.12582148]
[1722363233742,1.47089858,66066.0,66065.0,0.13082148]
[1722363233950,0.86544458,66066.0,66065.0,0.28145452]
[1722363234150,0.73013687,66066.0,66065.0,0.28145452]
[1722363234354,0.73013687,66066.0,66065.0,0.2841627]
[1722363234569,0.73013687,66066.0,66065.0,0.32900426]
[1722363235202,0.27504687,66066.0,66065.0,0.2891627]
[1722363235407,0.27504687,66066.0,66065.0,0.2841627]
[1722363235408,0.12724687,66066.0,66065.0,0.2841627]
[1722363235614,0.12724687,66066.0,66065.0,0.52576065]
[1722363235786,0.12724687,66066.0,66065.0,0.62422738]
[1722363236002,0.12724687,66066.0,66065.0,0.15834122]
[1722363236218,0.12724687,66066.0,66065.0,0.4728215]
[1722363236429,0.12524687,66066.0,66065.0,0.52568978]
[1722363236641,0.12524687,66066.0,66065.0,0.4728215]
[1722363236848,0.12524687,66066.0,66065.0,0.6301875]
[1722363237058,0.12524687,66066.0,66065.0,0.4788215]
[1722363237259,0.12524687,66066.0,66065.0,0.34300224]
[1722363237481,0.12524687,66066.0,66065.0,0.3965042]
[1722363237697,0.12524687,66066.0,66065.0,0.52570175]
[1722363237919,0.12524687,66066.0,66065.0,0.48683348]
[1722363238150,0.12524687,66066.0,66065.0,0.63819948]
[1722363238357,0.12524687,66066.0,66065.0,1.24366348]
[1722363238595,0.12524687,66066.0,66065.0,1.40118817]
[1722363238802,0.12524687,66066.0,66065.0,1.26666348]
[1722363239231,0.12524687,66066.0,66065.0,1.26664578]
[1722363239651,0.12524687,66066.0,66065.0,1.70434515]
[1722363239875,0.00854,66066.0,66065.0,1.56937778]
[1722363240081,0.00854,66066.0,66065.0,1.61461436]
[1722363240255,0.00854,66066.0,66065.0,1.3001398]
[1722363240462,0.09426737,66066.0,66065.0,1.31185551]
[1722363240672,0.09426737,66066.0,66065.0,1.29785551]
[1722363240906,0.09426737,66066.0,66065.0,1.38760342]
[1722363241685,0.09426737,66066.0,66065.0,1.56935093]
[1722363241929,0.00854,66066.0,66065.0,1.55535093]
[1722363242141,0.00854,66066.0,66065.0,2.37929293]
[1722363242365,0.00854,66066.0,66065.0,2.41849128]
[1722363242587,0.00854,66066.0,66065.0,2.09175928]
[1722363242811,0.00854,66066.0,66065.0,1.8275227]
[1722363243077,0.00854,66066.0,66065.0,0.5031607]
[1722363243078,0.15354,66066.0,66065.0,0.5031607]
[1722363243284,0.67999565,66066.0,66065.0,0.24602316]
[1722363243485,1.28544965,66066.0,66065.0,0.20101862]
[1722363243687,0.98272265,66066.0,66065.0,0.13347197]
[1722363243862,0.37726865,66066.0,66065.0,0.17852595]
[1722363244064,0.98472265,66066.0,66065.0,0.19252595]
[1722363244239,0.98472265,66066.0,66065.0,0.17852595]
[1722363244447,0.98472265,66066.0,66065.0,0.13347197]
[1722363244609,0.22790565,66066.0,66065.0,0.34315899]
[1722363244806,0.08290565,66066.0,66065.0,0.43547101]
[1722363245016,0.08290565,66066.0,66065.0,0.28410501]
[1722363245222,0.08290565,66066.0,66065.0,0.56213054]
[1722363245433,0.08290565,66066.0,66065.0,1.05493501]
[1722363245663,0.08090565,66066.0,66065.0,1.34366701]
[1722363245865,0.00854,66066.0,66065.0,1.38066701]
[1722363246069,0.00854,66066.0,66065.0,1.07793501]
[1722363246368,0.00854,66066.0,66065.0,1.31945918]
[1722363246576,0.00854,66066.0,66065.0,1.07793501]
[1722363246783,0.00854,66066.0,66065.0,0.32110501]
[1722363246989,0.00854,66066.0,66065.0,0.44947101]
[1722363247181,0.00854,66066.0,66065.0,0.73820301]
[1722363247335,0.00854,66066.0,66065.0,1.06393501]
[1722363247540,0.00854,66066.0,66065.0,0.88793363]
[1722363247736,0.08741191,66066.0,66065.0,0.39683563]
[1722363248208,0.08741191,66066.0,66065.0,0.38831403]
[1722363248343,0.08741191,66066.0,66065.0,0.15834122]
[1722363248535,0.08741191,66066.0,66065.0,0.35179923]
[1722363248790,0.08741191,66066.0,66065.0,0.51179923]
[1722363249005,0.08741191,66066.0,66065.0,1.02000167]
[1722363249006,0.00854,66066.0,66065.0,1.02000167]
[1722363249212,0.00854,66066.0,66065.0,1.20996823]
[1722363249419,0.00854,66066.0,66065.0,1.70137008]
[1722363249632,0.00854,66066.0,66065.0,1.754213]
[1722363249839,0.00854,66066.0,66065.0,1.70137008]
[1722363250271,0.00854,66066.0,66065.0,2.00410208]
[1722363250484,0.00854,66066.0,66065.0,2.28342061]
[1722363250696,0.00854,66066.0,66065.0,2.29976061]
[1722363251117,0.00854,66066.0,66065.0,2.31376061]
[1722363251323,0.00854,66066.0,66065.0,2.29976061]
[1722363251538,0.00854,66066.0,66065.0,1.98529061]
[1722363251747,0.00854,66066.0,66065.0,2.17838619]
[1722363251957,0.00854,66066.0,66065.0,2.16438619]
[1722363252392,0.00854,66066.0,66065.0,2.48111819]
[1722363252652,0.0608,66091.0,66065.0,2.48111819]
[1722363252653,0.44444115,66131.0,66091.0,0.151306]
[1722363252871,0.44444115,66114.0,66113.0,0.463768]
[1722363253090,0.44444115,66114.0,66113.0,2.17929054]
[1722363253313,0.44444115,66131.0,66130.0,1.058519]
[1722363253537,0.0001,66132.0,66131.0,0.453645]
[1722363253745,0.0001,66132.0,66131.0,0.96818019]
[1722363254022,0.0001,66132.0,66131.0,1.73071559]
[1722363254253,0.0001,66132.0,66131.0,1.76898559]
[1722363254491,0.0001,66132.0,66131.0,1.40311958]
[1722363254707,0.0001,66132.0,66131.0,1.40309929]
[1722363254914,0.0001,66132.0,66131.0,1.4479232]
[1722363255327,0.0001,66132.0,66131.0,1.70552929]
[1722363255540,0.0001,66132.0,66131.0,1.44786357]
[1722363255948,0.0001,66132.0,66131.0,1.26239929]
[1722363256809,0.0001,66132.0,66131.0,1.00473357]
[1722363257021,0.0001,66132.0,66131.0,0.95996929]
[1722363257230,0.0001,66132.0,66131.0,1.26239929]
[1722363257679,0.0001,66132.0,66131.0,0.8343204]
[1722363258114,0.0001,66132.0,66131.0,0.4318904]
[1722363258337,0.0001,66132.0,66131.0,0.1576754]
[1722363258987,0.0001,66132.0,66131.0,0.3088904]
[1722363259192,0.0001,66132.0,66131.0,0.6143442]
[1722363259399,0.0001,66132.0,66131.0,0.9167742]
[1722363260016,0.0001,66132.0,66131.0,1.3422042]
[1722363260423,0.0001,66132.0,66131.0,0.7343204]
[1722363260840,0.0001,66132.0,66131.0,1.0367504]
[1722363261459,0.0001,66132.0,66131.0,0.4088904]
[1722363261683,0.0001,66132.0,66131.0,0.2806754]
[1722363261918,0.0001,66132.0,66131.0,0.28369926]
[1722363262148,0.0001,66132.0,66131.0,0.2576754]
[1722363262353,0.0001,66132.0,66131.0,0.1576754]
[1722363264592,0.0001,66132.0,66131.0,0.6113204]
[1722363264829,0.0001,66132.0,66131.0,0.63734445]
[1722363265288,0.0001,66132.0,66131.0,0.93977445]
[1722363265457,0.0001,66132.0,66131.0,0.63734445]
[1722363265870,0.0001,66132.0,66131.0,0.93977445]
[1722363266094,0.0001,66132.0,66131.0,0.63734445]
[1722363266498,0.0001,66132.0,66131.0,0.93977445]
[1722363266672,0.0001,66132.0,66131.0,0.31191445]
[1722363266897,0.0001,66132.0,66131.0,0.1576754]
[1722363268804,0.0001,66132.0,66131.0,1.1137504]
[1722363268982,0.0001,66132.0,66131.0,1.26240859]
[1722363269180,0.0001,66132.0,66131.0,0.65754859]
[1722363269387,0.0001,66132.0,66131.0,0.5318904]
[1722363269619,0.0001,66132.0,66131.0,0.9781204]
[1722363269828,0.0001,66132.0,66131.0,1.70864233]
[1722363270654,0.0001,66132.0,66131.0,1.7086404]
[1722363271065,0.0001,66132.0,66131.0,1.2624104]
[1722363271258,0.0001,66132.0,66131.0,0.9599804]
[1722363271877,0.0001,66132.0,66131.0,1.2624104]
[1722363272091,0.0001,66132.0,66131.0,0.9599804]
[1722363272294,0.0001,66132.0,66131.0,1.63963137]
[1722363272494,0.0624,66147.0,66140.0,0.302387]
[1722363272704,0.0624,66147.0,66143.0,0.151186]
[1722363272921,0.0624,66147.0,66144.0,0.15063304]
[1722363273127,0.0624,66147.0,66144.0,0.15763269]
[1722363273776,0.213578,66147.0,66144.0,0.15763269]
[1722363273985,0.151183,66145.0,66144.0,0.15763269]
[1722363274191,0.755915,66145.0,66144.0,0.15763269]
[1722363274395,0.453549,66145.0,66144.0,0.15763269]
[1722363274602,0.453549,66145.0,66144.0,0.15063304]
[1722363274795,0.755915,66145.0,66144.0,0.15063304]
[1722363275366,0.453549,66145.0,66144.0,0.15063304]
[1722363275718,0.453549,66145.0,66144.0,0.15760294]
[1722363276348,0.755915,66145.0,66144.0,0.0069699]
[1722363276606,0.453576,66141.0,66140.0,0.01453477]
[1722363277116,0.75596,66141.0,66140.0,0.01453477]
[1722363277259,0.453576,66141.0,66140.0,0.01453477]
[1722363277852,0.43591133,66141.0,66140.0,0.01453477]
[1722363278470,0.43591133,66141.0,66140.0,0.14020572]
[1722363279486,0.73829533,66141.0,66140.0,0.14020572]
[1722363279689,0.43591133,66141.0,66140.0,0.14020572]
[1722363280044,0.302376,66143.0,66140.0,0.14020572]
[1722363280260,0.0772,66144.0,66141.0,0.27625819]
[1722363280481,0.151189,66142.0,66141.0,0.15063304]
[1722363280704,0.151189,66142.0,66141.0,0.27629935]
[1722363280907,0.228387,66144.0,66141.0,0.28328067]
[1722363281078,0.228386,66144.0,66142.0,0.12566788]
[1722363281266,0.228386,66144.0,66143.0,0.12566788]
[1722363281267,0.530755,66144.0,66143.0,0.12566788]
[1722363281462,0.833125,66144.0,66143.0,0.13264106]
[1722363281951,1.135495,66144.0,66143.0,0.13264106]
[1722363282327,1.135495,66144.0,66143.0,0.31417477]
[1722363282734,1.135495,66144.0,66143.0,0.32114795]
[1722363283144,1.135495,66144.0,66143.0,0.31964795]
[1722363283350,1.135495,66144.0,66143.0,0.00697318]
[1722363283515,1.135495,66144.0,66143.0,0.13264741]
[1722363283721,1.135495,66144.0,66140.0,0.05278536]
[1722363283722,0.0624,66134.0,66133.0,0.000913]
[1722363283937,0.0624,66134.0,66133.0,0.47276163]
[1722363284207,0.1772,66144.0,66133.0,0.47276163]
[1722363284208,0.0624,66139.0,66133.0,0.47276163]
[1722363284411,0.0624,66139.0,66134.0,0.4648426]
[1722363284636,0.0624,66139.0,66135.0,0.31420956]
[1722363284833,0.213596,66139.0,66136.0,0.4648426]
[1722363285061,0.151199,66138.0,66137.0,0.31420956]
[1722363285263,0.453597,66138.0,66137.0,0.4648426]
[1722363285466,0.755995,66138.0,66137.0,0.47183549]
[1722363285917,0.453597,66138.0,66137.0,0.47183549]
[1722363286082,0.453597,66138.0,66137.0,0.52464603]
[1722363286285,0.453597,66138.0,66137.0,0.47183549]
[1722363286493,0.453597,66138.0,66137.0,0.52465624]
[1722363286695,0.453597,66138.0,66137.0,0.28330975]
[1722363286895,0.453597,66138.0,66137.0,0.47183406]
[1722363288632,0.755995,66138.0,66137.0,0.47183406]
[1722363289054,0.755995,66138.0,66137.0,0.28330918]
[1722363291884,0.85907232,66138.0,66137.0,0.28330918]
[1722363292098,1.16147032,66138.0,66137.0,0.28330918]
[1722363292310,1.32537032,66138.0,66137.0,0.15063304]
[1722363292729,0.72057432,66138.0,66137.0,0.15063304]
[1722363292939,0.41817632,66138.0,66137.0,0.27633026]
[1722363293159,0.41817632,66138.0,66137.0,0.28331611]
[1722363293160,0.72057432,66138.0,66137.0,0.28331611]
[1722363293364,0.696897,66138.0,66137.0,0.28331611]
[1722363293567,0.999295,66138.0,66137.0,0.28331611]
[1722363293767,1.02297212,66138.0,66137.0,0.27632322]
[1722363293978,0.92297212,66138.0,66137.0,0.27632322]
[1722363294209,0.899295,66138.0,66137.0,0.28331611]
[1722363295271,1.201693,66138.0,66137.0,0.32817931]
[1722363295692,1.201693,66138.0,66137.0,0.28331611]
[1722363296300,1.201693,66138.0,66137.0,0.35085972]
[1722363296502,1.201693,66138.0,66137.0,0.32834576]
[1722363297127,1.22536996,66138.0,66137.0,0.32834576]
[1722363297327,1.22536996,66138.0,66137.0,0.28331243]
[1722363297585,1.22536996,66138.0,66134.0,0.07534716]
[1722363297586,1.32423,66138.0,66134.0,0.04508042]
[1722363297792,0.151247,66117.0,66115.0,0.13514347]
[1722363298049,0.02,66123.0,66112.0,0.04508042]
[1722363298050,0.3914,66116.0,66112.0,0.04508042]
[1722363298304,0.453774,66112.0,66111.0,0.04508042]
[1722363298530,0.151263,66110.0,66109.0,0.04508042]
[1722363298731,0.756315,66110.0,66109.0,0.04516461]
[1722363298841,0.453795,66109.0,66108.0,0.06762082]
[1722363299045,0.1192,66116.0,66107.0,0.06774331]
[1722363299295,0.453802,66108.0,66107.0,0.06774331]
[1722363299547,0.151295,66096.0,66093.0,0.13549413]
[1722363299767,0.151293,66097.0,66095.0,0.16874376]
[1722363299958,0.302535,66108.0,66100.0,0.151285]
[1722363299959,0.151268,66108.0,66100.0,0.151285]
[1722363300131,0.151267,66108.0,66107.0,0.06767365]
[1722363300336,0.453802,66108.0,66107.0,0.15063304]
[1722363300508,0.151266,66109.0,66107.0,0.15063304]
[1722363300728,0.151249,66116.0,66108.0,0.4276236]
[1722363300926,0.151249,66116.0,66114.0,0.06762613]
[1722363300927,0.151251,66115.0,66114.0,0.06762613]
[1722363301157,0.151251,66115.0,66114.0,0.1257138]
[1722363301158,0.756257,66115.0,66114.0,0.1257138]
[1722363301485,0.151258,66112.0,66111.0,0.04508685]
[1722363301708,0.1415,66112.0,66103.0,0.04509261]
[1722363301917,0.453802,66108.0,66107.0,0.15063304]
[1722363302140,0.151267,66108.0,66107.0,0.15063304]
[1722363302557,0.453802,66108.0,66107.0,0.15063304]
[1722363302986,0.756337,66108.0,66107.0,0.15063304]
[1722363303419,0.151285,66100.0,66099.0,0.05962738]
[1722363303641,0.302535,66108.0,66107.0,0.01431937]
[1722363303842,0.453802,66108.0,66107.0,0.15063304]
[1722363304475,0.756337,66108.0,66107.0,0.16516781]
[1722363305521,0.151259,66112.0,66107.0,0.16516781]
[1722363305748,0.302516,66113.0,66108.0,0.15063304]
[1722363305950,0.151261,66111.0,66108.0,0.15063304]
[1722363306157,0.302496,66117.0,66109.0,0.01430168]
[1722363306367,0.0664,66121.0,66110.0,0.15063304]
[1722363306576,0.0664,66121.0,66110.0,0.16492595]
[1722363306780,0.151255,66114.0,66110.0,0.16492595]
[1722363306989,0.302483,66120.0,66110.0,0.16492595]